[Event "Early-Titled-Tuesday-Blitz-October-17-2023"]
[Site "Chess.com"]
[Date "2023.10.17"]
[Round "5"]
[White "azikom"]
[Black "topin8"]
[Result "1-0"]
[WhiteElo "2630"]
[BlackElo "2492"]
[TimeControl "180+1"]
[EndTime "8:58:24 PDT"]
[Termination "azikom won on time"]

1. c4 {[%clk 0:03:00.9]} 1... c5 {[%clk 0:02:54.1]} 2. Nc3 {[%clk 0:03:00.5]}
2... Nc6 {[%clk 0:02:54.1]} 3. g3 {[%clk 0:03:01.4]} 3... g6 {[%clk 0:02:54.2]}
4. Bg2 {[%clk 0:03:02.3]} 4... Bg7 {[%clk 0:02:54.8]} 5. d3 {[%clk 0:03:02.6]}
5... e5 {[%clk 0:02:55]} 6. h4 {[%clk 0:03:02.9]} 6... h6 {[%clk 0:02:54.1]} 7.
Nf3 {[%clk 0:02:59]} 7... d6 {[%clk 0:02:48.3]} 8. Nd2 {[%clk 0:02:59.1]} 8...
Nge7 {[%clk 0:02:46.9]} 9. Nf1 {[%clk 0:02:59.1]} 9... Be6 {[%clk 0:02:41.3]}
10. Ne3 {[%clk 0:02:59.5]} 10... Rb8 {[%clk 0:02:41.4]} 11. Ned5 {[%clk
0:02:55.7]} 11... a6 {[%clk 0:02:39.2]} 12. b3 {[%clk 0:02:44.3]} 12... b5
{[%clk 0:02:36]} 13. Bd2 {[%clk 0:02:37.3]} 13... b4 {[%clk 0:02:17.9]} 14. Nxe7
{[%clk 0:02:36.5]} 14... Nxe7 {[%clk 0:02:17.3]} 15. Nd5 {[%clk 0:02:31.7]}
15... Nxd5 {[%clk 0:01:44.7]} 16. cxd5 {[%clk 0:02:32.6]} 16... Bd7 {[%clk
0:01:43.9]} 17. Rc1 {[%clk 0:02:25.2]} 17... O-O {[%clk 0:01:23]} 18. O-O {[%clk
0:02:21.6]} 18... Qe7 {[%clk 0:01:02.9]} 19. e4 {[%clk 0:02:12.1]} 19... f5
{[%clk 0:00:49]} 20. f4 {[%clk 0:01:56.2]} 20... exf4 {[%clk 0:00:28.8]} 21.
Bxf4 {[%clk 0:01:54.9]} 21... Bd4+ {[%clk 0:00:25.4]} 22. Kh1 {[%clk 0:01:53.9]}
22... g5 {[%clk 0:00:25.9]} 23. Bd2 {[%clk 0:01:53.3]} 23... f4 {[%clk
0:00:16.2]} 24. Qh5 {[%clk 0:01:47]} 24... Qg7 {[%clk 0:00:04]} 25. gxf4 {[%clk
0:01:41.1]} 25... g4 {[%clk 0:00:04.2]} 26. f5 {[%clk 0:01:37.8]} 26... Rf6
{[%clk 0:00:04.5]} 27. Rf4 {[%clk 0:01:12.8]} 27... Be8 {[%clk 0:00:03.5]} 28.
Qxg4 {[%clk 0:01:12.5]} 28... Qxg4 {[%clk 0:00:02.5]} 29. Rxg4+ {[%clk
0:01:12.4]} 29... Kh7 {[%clk 0:00:03.4]} 30. Rg3 {[%clk 0:01:08.8]} 30... Be5
{[%clk 0:00:03]} 31. Rh3 {[%clk 0:01:02]} 31... Bb5 {[%clk 0:00:02.5]} 32. Rf1
{[%clk 0:01:00.6]} 32... Rg8 {[%clk 0:00:02.8]} 33. Bf4 {[%clk 0:01:00.5]} 33...
Bxf4 {[%clk 0:00:02.1]} 34. Rxf4 {[%clk 0:01:00.1]} 34... a5 {[%clk 0:00:03]}
35. Kh2 {[%clk 0:00:51.2]} 35... h5 {[%clk 0:00:03.4]} 36. Rf2 {[%clk
0:00:48.6]} 36... Kh6 {[%clk 0:00:03.4]} 37. Bf1 {[%clk 0:00:48.2]} 37... a4
{[%clk 0:00:03.7]} 38. Rg3 {[%clk 0:00:44.2]} 38... Rxg3 {[%clk 0:00:03.6]} 39.
Kxg3 {[%clk 0:00:45.1]} 39... a3 {[%clk 0:00:01.9]} 40. Kf4 {[%clk 0:00:43.9]}
40... Rf8 {[%clk 0:00:02.5]} 41. Rg2 {[%clk 0:00:43.7]} 41... Re8 {[%clk
0:00:01.4]} 42. Rg6+ {[%clk 0:00:43.2]} 42... Kh7 {[%clk 0:00:01.9]} 43. Rg5
{[%clk 0:00:42.7]} 43... Ba4 {[%clk 0:00:02.3]} 44. Be2 {[%clk 0:00:37.2]} 44...
Bxb3 {[%clk 0:00:02.5]} 45. axb3 {[%clk 0:00:37.2]} 45... a2 {[%clk 0:00:03.3]}
46. Rg1 {[%clk 0:00:37.7]} 46... Ra8 {[%clk 0:00:03.4]} 47. Ra1 {[%clk
0:00:37.5]} 47... Kg7 {[%clk 0:00:04]} 48. Bxh5 {[%clk 0:00:37.4]} 48... Kf6
{[%clk 0:00:04.3]} 49. Bd1 {[%clk 0:00:37.6]} 49... Ra3 {[%clk 0:00:04.9]} 50.
h5 {[%clk 0:00:37.8]} 50... Ra8 {[%clk 0:00:05.5]} 51. h6 {[%clk 0:00:38]} 51...
Ra7 {[%clk 0:00:06.1]} 52. Bh5 {[%clk 0:00:37.4]} 52... Ra8 {[%clk 0:00:04.6]}
53. Bg6 {[%clk 0:00:36.9]} 53... Ra7 {[%clk 0:00:04.8]} 54. h7 {[%clk
0:00:36.8]} 54... Ra8 {[%clk 0:00:05.4]} 55. Rxa2 {[%clk 0:00:33.4]} 55... Rh8
{[%clk 0:00:05.9]} 56. Ra6 {[%clk 0:00:32.1]} 56... Ke7 {[%clk 0:00:06]} 57. e5
{[%clk 0:00:30.7]} 1-0

[Event "Early-Titled-Tuesday-Blitz-October-17-2023"]
[Site "Chess.com"]
[Date "2023.10.17"]
[Round "5"]
[White "BJthechessgod"]
[Black "Truequitos"]
[Result "0-1"]
[WhiteElo "2379"]
[BlackElo "2513"]
[TimeControl "180+1"]
[EndTime "8:58:25 PDT"]
[Termination "Truequitos won by resignation"]

1. e4 {[%clk 0:03:00.9]} 1... c6 {[%clk 0:02:59.8]} 2. d4 {[%clk 0:02:55.7]}
2... d5 {[%clk 0:03:00.4]} 3. e5 {[%clk 0:02:56]} 3... c5 {[%clk 0:03:00.6]} 4.
dxc5 {[%clk 0:02:55.4]} 4... e6 {[%clk 0:02:59.9]} 5. Be3 {[%clk 0:02:52.6]}
5... Nd7 {[%clk 0:02:58.9]} 6. Nf3 {[%clk 0:02:42.6]} 6... Bxc5 {[%clk
0:02:57.8]} 7. Bxc5 {[%clk 0:02:32.9]} 7... Nxc5 {[%clk 0:02:57.5]} 8. c4 {[%clk
0:02:33.6]} 8... Qb6 {[%clk 0:02:53]} 9. Qd4 {[%clk 0:02:22.6]} 9... Ne7 {[%clk
0:02:48]} 10. Nc3 {[%clk 0:02:06.1]} 10... Nf5 {[%clk 0:02:26.7]} 11. Qd2 {[%clk
0:02:03.1]} 11... Ne4 {[%clk 0:02:27]} 12. Nxe4 {[%clk 0:01:38.7]} 12... dxe4
{[%clk 0:02:27.9]} 13. Ng5 {[%clk 0:01:36.4]} 13... e3 {[%clk 0:02:06.8]} 14.
fxe3 {[%clk 0:01:35.3]} 14... O-O {[%clk 0:02:06.6]} 15. Bd3 {[%clk 0:01:24.9]}
15... Nxe3 {[%clk 0:01:47.7]} 16. Bxh7+ {[%clk 0:01:17.2]} 16... Kh8 {[%clk
0:01:47.9]} 17. Qe2 {[%clk 0:01:08.4]} 17... g6 {[%clk 0:01:40]} 18. h4 {[%clk
0:00:55.5]} 18... f6 {[%clk 0:00:59]} 19. Bxg6 {[%clk 0:00:48.3]} 19... Qb4+
{[%clk 0:00:49.1]} 20. Kf2 {[%clk 0:00:48.2]} 20... fxg5+ {[%clk 0:00:48.7]} 21.
Kxe3 {[%clk 0:00:48.5]} 21... Qb6+ {[%clk 0:00:24.3]} 22. Kd2 {[%clk 0:00:40]}
22... Qd4+ {[%clk 0:00:20.9]} 23. Kc2 {[%clk 0:00:36.2]} 23... g4 {[%clk
0:00:19.8]} 24. Rad1 {[%clk 0:00:33.6]} 24... Rf2 {[%clk 0:00:05.5]} 25. Rxd4
{[%clk 0:00:24.4]} 25... Rxe2+ {[%clk 0:00:05.8]} 26. Kd3 {[%clk 0:00:22.2]}
26... Rxe5 {[%clk 0:00:06.5]} 27. Rd8+ {[%clk 0:00:22.1]} 27... Kg7 {[%clk
0:00:06.9]} 28. h5 {[%clk 0:00:21.5]} 28... Kh6 {[%clk 0:00:06.8]} 29. Rf1
{[%clk 0:00:20.4]} 29... b6 {[%clk 0:00:05.4]} 30. Rf7 {[%clk 0:00:20.6]} 30...
Bb7 {[%clk 0:00:03.5]} 31. Rxa8 {[%clk 0:00:13.6]} 31... Bxa8 {[%clk 0:00:04.4]}
32. g3 {[%clk 0:00:12.4]} 32... Kg5 {[%clk 0:00:04.5]} 33. Rxa7 {[%clk
0:00:11.8]} 33... Bf3 {[%clk 0:00:04.6]} 34. b4 {[%clk 0:00:06.5]} 34... Re1
{[%clk 0:00:04.6]} 35. c5 {[%clk 0:00:06.6]} 35... Rd1+ {[%clk 0:00:05.4]} 36.
Kc4 {[%clk 0:00:05.6]} 36... bxc5 {[%clk 0:00:06]} 37. bxc5 {[%clk 0:00:05.9]}
37... Rc1+ {[%clk 0:00:06.7]} 38. Kb5 {[%clk 0:00:06.3]} 38... Be2+ {[%clk
0:00:07.1]} 39. Kb6 {[%clk 0:00:06.5]} 39... Bf3 {[%clk 0:00:05.8]} 40. Re7
{[%clk 0:00:04.4]} 40... Rb1+ {[%clk 0:00:05.7]} 41. Kc7 {[%clk 0:00:04.3]}
41... Rc1 {[%clk 0:00:05.2]} 42. Kd6 {[%clk 0:00:03.9]} 42... Bd5 {[%clk
0:00:05.1]} 43. Rf7 {[%clk 0:00:02.4]} 43... Ra1 {[%clk 0:00:05]} 44. a4 {[%clk
0:00:02.3]} 44... Rxa4 {[%clk 0:00:05]} 45. c6 {[%clk 0:00:03.2]} 45... Ra6
{[%clk 0:00:05.2]} 46. Rc7 {[%clk 0:00:03.1]} 46... Bf3 {[%clk 0:00:05.4]} 47.
Rc8 {[%clk 0:00:03.4]} 47... e5 {[%clk 0:00:05.7]} 48. Kxe5 {[%clk 0:00:03.4]}
48... Rxc6 {[%clk 0:00:05.7]} 49. Rxc6 {[%clk 0:00:03.7]} 49... Bxc6 {[%clk
0:00:06.4]} 50. Be8 {[%clk 0:00:04]} 50... Bxe8 {[%clk 0:00:06.2]} 51. Ke6
{[%clk 0:00:04.4]} 51... Bxh5 {[%clk 0:00:06.4]} 52. Ke5 {[%clk 0:00:05.3]}
52... Bg6 {[%clk 0:00:06.7]} 53. Kd4 {[%clk 0:00:05.5]} 53... Kf5 {[%clk
0:00:07.2]} 54. Kd5 {[%clk 0:00:06.4]} 54... Kf6 {[%clk 0:00:07.4]} 55. Kd4
{[%clk 0:00:07.3]} 55... Kf5 {[%clk 0:00:08]} 56. Ke3 {[%clk 0:00:08.2]} 56...
Ke5 {[%clk 0:00:08.4]} 57. Ke2 {[%clk 0:00:08.5]} 57... Ke4 {[%clk 0:00:09.3]}
58. Kf2 {[%clk 0:00:09.3]} 58... Kd3 {[%clk 0:00:09.7]} 0-1

[Event "Early-Titled-Tuesday-Blitz-October-17-2023"]
[Site "Chess.com"]
[Date "2023.10.17"]
[Round "5"]
[White "Andrei_Skvortsov"]
[Black "Beca95"]
[Result "0-1"]
[WhiteElo "2662"]
[BlackElo "2913"]
[TimeControl "180+1"]
[EndTime "8:58:27 PDT"]
[Termination "Beca95 won by resignation"]

1. e4 {[%clk 0:03:00.9]} 1... e5 {[%clk 0:03:00.1]} 2. d4 {[%clk 0:03:01.4]}
2... exd4 {[%clk 0:02:59.4]} 3. Qxd4 {[%clk 0:03:02.3]} 3... Nc6 {[%clk
0:02:57.4]} 4. Qd3 {[%clk 0:03:02.8]} 4... Nf6 {[%clk 0:02:55.6]} 5. Nc3 {[%clk
0:03:02.1]} 5... d5 {[%clk 0:02:54.6]} 6. Nxd5 {[%clk 0:03:00.3]} 6... Nxd5
{[%clk 0:02:52.3]} 7. Qxd5 {[%clk 0:03:01.2]} 7... Qxd5 {[%clk 0:02:51.5]} 8.
exd5 {[%clk 0:03:02.1]} 8... Nb4 {[%clk 0:02:51.7]} 9. Bb5+ {[%clk 0:03:02.7]}
9... Bd7 {[%clk 0:02:50.2]} 10. Bxd7+ {[%clk 0:03:02.4]} 10... Kxd7 {[%clk
0:02:51.1]} 11. Kd1 {[%clk 0:03:02.9]} 11... Nxd5 {[%clk 0:02:50.5]} 12. Nf3
{[%clk 0:03:02.3]} 12... f6 {[%clk 0:02:50.8]} 13. c4 {[%clk 0:03:00.9]} 13...
Nb6 {[%clk 0:02:49.6]} 14. b3 {[%clk 0:02:59.4]} 14... Bc5 {[%clk 0:02:49.8]}
15. Rf1 {[%clk 0:02:48.1]} 15... Rhe8 {[%clk 0:02:49]} 16. Ne1 {[%clk 0:02:40]}
16... Rad8 {[%clk 0:02:47.2]} 17. Bd2 {[%clk 0:02:14.1]} 17... Kc8 {[%clk
0:02:42.2]} 18. Kc2 {[%clk 0:02:14.5]} 18... Re2 {[%clk 0:02:39.5]} 19. Nd3
{[%clk 0:02:15]} 19... Bb4 {[%clk 0:02:13.9]} 20. Rad1 {[%clk 0:02:13.6]} 20...
a5 {[%clk 0:02:11.1]} 21. Rfe1 {[%clk 0:02:06.7]} 21... Rxe1 {[%clk 0:02:08.2]}
22. Bxe1 {[%clk 0:01:59.9]} 22... Bxe1 {[%clk 0:02:04.8]} 23. Rxe1 {[%clk
0:02:00.8]} 23... Nd7 {[%clk 0:01:56.9]} 24. Re7 {[%clk 0:01:55.3]} 24... Rg8
{[%clk 0:01:56.9]} 25. Nf4 {[%clk 0:01:50.8]} 25... h6 {[%clk 0:01:40.7]} 26.
Ne6 {[%clk 0:01:26.9]} 26... g6 {[%clk 0:01:39.3]} 27. Kc3 {[%clk 0:01:18.8]}
27... c6 {[%clk 0:01:39.4]} 28. f3 {[%clk 0:01:13.8]} 28... h5 {[%clk
0:01:38.2]} 29. a3 {[%clk 0:01:10.1]} 29... g5 {[%clk 0:01:32.4]} 30. g3 {[%clk
0:01:07.9]} 30... Ne5 {[%clk 0:01:31]} 31. Nd4 {[%clk 0:01:02.7]} 31... h4
{[%clk 0:01:29.1]} 32. gxh4 {[%clk 0:00:58.5]} 32... gxh4 {[%clk 0:01:28.7]} 33.
Rh7 {[%clk 0:00:59.1]} 33... c5 {[%clk 0:01:11.1]} 34. Nb5 {[%clk 0:00:58.2]}
34... Nxf3 {[%clk 0:01:10.4]} 35. Nd6+ {[%clk 0:00:57.6]} 35... Kb8 {[%clk
0:01:08.2]} 36. Nxb7 {[%clk 0:00:53.4]} 36... Rg2 {[%clk 0:00:55.1]} 37. Nxc5
{[%clk 0:00:49.2]} 37... Rxh2 {[%clk 0:00:55.1]} 38. Nd7+ {[%clk 0:00:49.5]}
38... Kc8 {[%clk 0:00:55]} 39. Nxf6 {[%clk 0:00:48.8]} 39... Rh3 {[%clk
0:00:51]} 40. Rh8+ {[%clk 0:00:44.9]} 40... Kb7 {[%clk 0:00:51]} 41. Nd5 {[%clk
0:00:41.2]} 41... Rh1 {[%clk 0:00:46.9]} 42. b4 {[%clk 0:00:34.5]} 42... h3
{[%clk 0:00:44.8]} 43. Rh7+ {[%clk 0:00:34]} 43... Kb8 {[%clk 0:00:44.5]} 44.
bxa5 {[%clk 0:00:20.6]} 44... h2 {[%clk 0:00:35.2]} 45. a6 {[%clk 0:00:16.5]}
45... Rb1 {[%clk 0:00:35.3]} 46. Ne7 {[%clk 0:00:06.9]} 46... h1=Q {[%clk
0:00:33.5]} 47. Nc6+ {[%clk 0:00:06.7]} 47... Kc8 {[%clk 0:00:29.9]} 48. Ne7+
{[%clk 0:00:04.7]} 48... Kd7 {[%clk 0:00:28.5]} 49. Rxh1 {[%clk 0:00:03.6]}
49... Rxh1 {[%clk 0:00:29.4]} 50. a7 {[%clk 0:00:03]} 50... Rh8 {[%clk 0:00:29]}
51. Nd5 {[%clk 0:00:03.6]} 51... Kc6 {[%clk 0:00:28.5]} 52. a4 {[%clk
0:00:03.3]} 52... Kb7 {[%clk 0:00:27.8]} 53. Kb4 {[%clk 0:00:03.5]} 53... Kxa7
{[%clk 0:00:27.4]} 54. Kb5 {[%clk 0:00:04]} 54... Rb8+ {[%clk 0:00:21.9]} 55.
Kc5 {[%clk 0:00:02.3]} 55... Rc8+ {[%clk 0:00:22]} 56. Kb5 {[%clk 0:00:02.8]}
56... Nd4+ {[%clk 0:00:21.9]} 57. Kb4 {[%clk 0:00:03.2]} 57... Nc6+ {[%clk
0:00:21.6]} 58. Kb5 {[%clk 0:00:02.9]} 58... Kb7 {[%clk 0:00:20.5]} 59. Nb6
{[%clk 0:00:03.1]} 59... Na7+ {[%clk 0:00:20.2]} 60. Ka5 {[%clk 0:00:03.2]}
60... Rc5+ {[%clk 0:00:20.5]} 0-1

[Event "Early-Titled-Tuesday-Blitz-October-17-2023"]
[Site "Chess.com"]
[Date "2023.10.17"]
[Round "5"]
[White "pineapplepenn"]
[Black "BeautiFullMindChess"]
[Result "0-1"]
[WhiteElo "2404"]
[BlackElo "2271"]
[TimeControl "180+1"]
[EndTime "8:58:27 PDT"]
[Termination "BeautiFullMindChess won on time"]

1. d4 {[%clk 0:02:56.5]} 1... Nf6 {[%clk 0:02:59.8]} 2. Bf4 {[%clk 0:02:55.4]}
2... e6 {[%clk 0:02:59.5]} 3. e3 {[%clk 0:02:54]} 3... d5 {[%clk 0:02:59.6]} 4.
Nf3 {[%clk 0:02:52.9]} 4... Bd6 {[%clk 0:02:59.8]} 5. Bg3 {[%clk 0:02:51.8]}
5... O-O {[%clk 0:02:59.3]} 6. Nbd2 {[%clk 0:02:50.1]} 6... c5 {[%clk 0:02:59]}
7. c3 {[%clk 0:02:49.2]} 7... Qc7 {[%clk 0:02:58.2]} 8. dxc5 {[%clk 0:02:47.8]}
8... Qxc5 {[%clk 0:02:57.2]} 9. Bd3 {[%clk 0:02:47.4]} 9... Bxg3 {[%clk
0:02:52.1]} 10. hxg3 {[%clk 0:02:46.1]} 10... Nc6 {[%clk 0:02:53]} 11. g4 {[%clk
0:02:42.1]} 11... g6 {[%clk 0:02:51.3]} 12. g5 {[%clk 0:02:40.1]} 12... Ne8
{[%clk 0:02:46.8]} 13. Qe2 {[%clk 0:02:33.4]} 13... e5 {[%clk 0:02:45.9]} 14. e4
{[%clk 0:02:33.1]} 14... d4 {[%clk 0:02:42]} 15. Nb3 {[%clk 0:02:25.4]} 15...
Qb6 {[%clk 0:02:41.5]} 16. cxd4 {[%clk 0:02:24.3]} 16... exd4 {[%clk 0:02:40.1]}
17. Nfd2 {[%clk 0:02:03.7]} 17... Nd6 {[%clk 0:02:38.4]} 18. f4 {[%clk
0:02:01.8]} 18... Nb4 {[%clk 0:02:33]} 19. a3 {[%clk 0:01:51.3]} 19... Bg4
{[%clk 0:02:25.8]} 20. Qxg4 {[%clk 0:01:43.7]} 20... Nxd3+ {[%clk 0:02:25.3]}
21. Kf1 {[%clk 0:01:35.2]} 21... Nc4 {[%clk 0:02:08]} 22. Qh3 {[%clk 0:01:25.6]}
22... Ne3+ {[%clk 0:01:57.1]} 23. Kg1 {[%clk 0:01:24.3]} 23... h5 {[%clk
0:01:55.8]} 24. gxh6 {[%clk 0:01:22.1]} 24... Nxf4 {[%clk 0:01:41]} 25. h7+
{[%clk 0:01:21.5]} 25... Kh8 {[%clk 0:01:40.2]} 26. Qf3 {[%clk 0:01:17.5]} 26...
Nh5 {[%clk 0:01:00.8]} 27. Re1 {[%clk 0:00:47.8]} 27... Nc2 {[%clk 0:00:52.6]}
28. Rf1 {[%clk 0:00:44.6]} 28... d3+ {[%clk 0:00:51.6]} 29. Rf2 {[%clk
0:00:43.8]} 29... Rad8 {[%clk 0:00:42.3]} 30. g4 {[%clk 0:00:32.5]} 30... Ng7
{[%clk 0:00:35.3]} 31. Kg2 {[%clk 0:00:24.7]} 31... Ne3+ {[%clk 0:00:30.2]} 32.
Kg3 {[%clk 0:00:24.9]} 32... Qd6+ {[%clk 0:00:26.8]} 33. Qf4 {[%clk 0:00:24.6]}
33... Qxf4+ {[%clk 0:00:26.4]} 34. Kxf4 {[%clk 0:00:24.9]} 34... Nc2 {[%clk
0:00:25.3]} 35. Rh3 {[%clk 0:00:22.9]} 35... Ne6+ {[%clk 0:00:25.1]} 36. Ke5
{[%clk 0:00:20.4]} 36... Kg7 {[%clk 0:00:20.9]} 37. Rff3 {[%clk 0:00:08.8]}
37... Rfe8 {[%clk 0:00:18.2]} 38. h8=Q+ {[%clk 0:00:08.2]} 38... Rxh8 {[%clk
0:00:16.8]} 39. Rxd3 {[%clk 0:00:07.4]} 39... Rxd3 {[%clk 0:00:15.4]} 40. Rxd3
{[%clk 0:00:07]} 40... Re8 {[%clk 0:00:15.5]} 41. Kd5 {[%clk 0:00:03.4]} 41...
Nf4+ {[%clk 0:00:14.8]} 42. Kc4 {[%clk 0:00:03.1]} 42... Nxd3 {[%clk 0:00:15]}
43. Kxd3 {[%clk 0:00:01.5]} 43... Ne1+ {[%clk 0:00:15.4]} 44. Ke2 {[%clk
0:00:01]} 44... Ng2 {[%clk 0:00:15.7]} 45. Kf3 {[%clk 0:00:01.1]} 45... Nh4+
{[%clk 0:00:15.9]} 46. Kg3 {[%clk 0:00:01.1]} 46... g5 {[%clk 0:00:16.3]} 47.
Nd4 {[%clk 0:00:01.5]} 47... Kg6 {[%clk 0:00:15.5]} 48. N2b3 {[%clk 0:00:01.3]}
48... Rd8 {[%clk 0:00:15.4]} 0-1

[Event "Early-Titled-Tuesday-Blitz-October-17-2023"]
[Site "Chess.com"]
[Date "2023.10.17"]
[Round "5"]
[White "jasonbolivar"]
[Black "NowInChess"]
[Result "1/2-1/2"]
[WhiteElo "2315"]
[BlackElo "2202"]
[TimeControl "180+1"]
[EndTime "8:58:32 PDT"]
[Termination "Game drawn by repetition"]

1. e4 {[%clk 0:03:00.9]} 1... e6 {[%clk 0:02:59.5]} 2. d4 {[%clk 0:03:00.2]}
2... d5 {[%clk 0:03:00.1]} 3. Nc3 {[%clk 0:02:59.6]} 3... Nc6 {[%clk 0:02:59.6]}
4. Nf3 {[%clk 0:02:55.8]} 4... Nf6 {[%clk 0:02:59]} 5. Bg5 {[%clk 0:02:52.8]}
5... Be7 {[%clk 0:02:58.3]} 6. e5 {[%clk 0:02:51.8]} 6... Ne4 {[%clk 0:02:58.1]}
7. Be3 {[%clk 0:02:48.3]} 7... f6 {[%clk 0:02:23.9]} 8. exf6 {[%clk 0:02:35.8]}
8... Bxf6 {[%clk 0:02:05]} 9. Bd3 {[%clk 0:02:33.3]} 9... Nxc3 {[%clk
0:02:00.5]} 10. bxc3 {[%clk 0:02:32.7]} 10... O-O {[%clk 0:01:51.2]} 11. O-O
{[%clk 0:02:06]} 11... Bd7 {[%clk 0:01:42.4]} 12. Rb1 {[%clk 0:02:02.1]} 12...
b6 {[%clk 0:01:30.9]} 13. Bb5 {[%clk 0:02:02]} 13... Na5 {[%clk 0:01:24.8]} 14.
Bd3 {[%clk 0:01:57.4]} 14... Nc4 {[%clk 0:01:07.9]} 15. Bxc4 {[%clk 0:01:34.1]}
15... dxc4 {[%clk 0:01:08.8]} 16. Nd2 {[%clk 0:01:34.3]} 16... b5 {[%clk
0:01:08.6]} 17. Ne4 {[%clk 0:01:33.5]} 17... Bc6 {[%clk 0:01:01.5]} 18. Qg4
{[%clk 0:01:20.6]} 18... Qd5 {[%clk 0:00:41.1]} 19. f3 {[%clk 0:01:19.6]} 19...
Qf5 {[%clk 0:00:26.8]} 20. Qxf5 {[%clk 0:01:06.5]} 20... exf5 {[%clk 0:00:27.7]}
21. Nxf6+ {[%clk 0:01:04.1]} 21... Rxf6 {[%clk 0:00:28.3]} 22. Bf4 {[%clk
0:01:04.4]} 22... Rf7 {[%clk 0:00:24.2]} 23. Rfe1 {[%clk 0:01:02.9]} 23... Re8
{[%clk 0:00:20.6]} 24. Rxe8+ {[%clk 0:00:56.3]} 24... Bxe8 {[%clk 0:00:21.5]}
25. Re1 {[%clk 0:00:55.9]} 25... Kf8 {[%clk 0:00:21.5]} 26. Re5 {[%clk
0:00:54.4]} 26... a6 {[%clk 0:00:15.4]} 27. Rc5 {[%clk 0:00:49.4]} 27... c6
{[%clk 0:00:14.8]} 28. Bd6+ {[%clk 0:00:49.4]} 28... Kg8 {[%clk 0:00:14.5]} 29.
Re5 {[%clk 0:00:49.8]} 29... Bd7 {[%clk 0:00:14.6]} 30. Kf2 {[%clk 0:00:28.9]}
30... h6 {[%clk 0:00:13.3]} 31. h4 {[%clk 0:00:27.5]} 31... g6 {[%clk
0:00:13.2]} 32. g3 {[%clk 0:00:25.6]} 32... Rf6 {[%clk 0:00:13.2]} 33. Bc7
{[%clk 0:00:14.5]} 33... Re6 {[%clk 0:00:12.2]} 34. Rxe6 {[%clk 0:00:15]} 34...
Bxe6 {[%clk 0:00:12.8]} 35. Bf4 {[%clk 0:00:15.8]} 35... Kg7 {[%clk 0:00:12.1]}
36. Ke3 {[%clk 0:00:15.7]} 36... Bd5 {[%clk 0:00:12]} 37. Be5+ {[%clk
0:00:15.6]} 37... Kf7 {[%clk 0:00:11.8]} 38. Kf4 {[%clk 0:00:15.8]} 38... Ke6
{[%clk 0:00:10.1]} 39. Bg7 {[%clk 0:00:14.4]} 39... h5 {[%clk 0:00:09.1]} 40.
Be5 {[%clk 0:00:14]} 40... a5 {[%clk 0:00:08.4]} 41. Bc7 {[%clk 0:00:12.3]}
41... a4 {[%clk 0:00:08.4]} 42. Ba5 {[%clk 0:00:12.4]} 42... Kf6 {[%clk
0:00:07.5]} 43. Bb4 {[%clk 0:00:13]} 43... Ke6 {[%clk 0:00:07.8]} 44. Bc5 {[%clk
0:00:12.4]} 44... Kf6 {[%clk 0:00:08]} 45. Bb6 {[%clk 0:00:12.5]} 45... Be6
{[%clk 0:00:06.6]} 46. Bd8+ {[%clk 0:00:12.1]} 46... Kf7 {[%clk 0:00:06.1]} 47.
Ke5 {[%clk 0:00:11.4]} 47... Bd5 {[%clk 0:00:06.8]} 48. Kf4 {[%clk 0:00:11.7]}
48... Be6 {[%clk 0:00:06.5]} 49. Bc7 {[%clk 0:00:09.9]} 49... Bd5 {[%clk
0:00:07]} 50. Bb6 {[%clk 0:00:10.1]} 50... Ke6 {[%clk 0:00:07]} 51. Bc5 {[%clk
0:00:11]} 51... Kf7 {[%clk 0:00:07.2]} 52. Bb6 {[%clk 0:00:10.7]} 52... Ke6
{[%clk 0:00:07.4]} 53. Bd8 {[%clk 0:00:10.8]} 53... Kf7 {[%clk 0:00:08]} 54. Bg5
{[%clk 0:00:08.9]} 54... Ke6 {[%clk 0:00:08.1]} 55. Bh6 {[%clk 0:00:09.2]} 55...
Kf7 {[%clk 0:00:08.6]} 56. Ke3 {[%clk 0:00:08.7]} 56... Ke6 {[%clk 0:00:08.7]}
57. Bf4 {[%clk 0:00:08]} 57... Kf7 {[%clk 0:00:08.6]} 58. Be5 {[%clk 0:00:08.5]}
58... Ke6 {[%clk 0:00:08.6]} 59. Kf4 {[%clk 0:00:07.8]} 59... Kf7 {[%clk
0:00:08.6]} 60. Bd6 {[%clk 0:00:08.1]} 60... Ke6 {[%clk 0:00:08.9]} 61. Bc5
{[%clk 0:00:08.6]} 1/2-1/2